bitfinex/quotes_SOLUSD_20251216
["timestamp","ask_amount","ask_price","bid_price","bid_amount"]
[1765845947530,0.69,127.27,127.24,72.34282241]
[1765845949073,0.69,127.27,127.24,69.49301194]
[1765845949371,0.69,127.27,127.24,72.34282241]
[1765845949576,0.69,127.27,127.25,2.84981047]
[1765845950662,8.54751381,127.27,127.24,64.48373758]
[1765845951167,0.69,127.26,127.24,64.48373758]
[1765845951349,0.69,127.26,127.24,66.08892511]
[1765845952238,0.69,127.26,127.24,73.94782007]
[1765845953147,0.69,127.26,127.24,69.49282207]
[1765845953346,0.69,127.26,127.24,73.94782007]
[1765845953852,0.69,127.26,127.24,69.49282207]
[1765845955554,8.54802873,127.26,127.24,61.63392711]
[1765845955951,0.69,127.25,127.22,78.11401306]
[1765845956368,0.69,127.25,127.22,69.49401306]
[1765845959884,8.54865966,127.25,127.22,69.49401306]
[1765845960090,0.69,127.24,127.22,69.49401306]
[1765845961290,8.54922932,127.24,127.22,61.63392711]
[1765845961674,0.69,127.23,127.22,61.63392711]
[1765845961898,0.69,127.23,127.21,70.25392711]
[1765845962060,0.69,127.23,127.21,61.63392711]
[1765845962383,0.69,127.23,127.21,73.94969102]
[1765845963299,0.69,127.23,127.19,61.63392711]
[1765845963300,7.8603993,127.22,127.19,61.63392711]
[1765845963785,0.68,127.21,127.19,61.63392711]
[1765845964486,0.68,127.21,127.19,69.4961125]
[1765845965383,13.0470912,127.23,127.2,12.31624968]
[1765845965562,13.7270912,127.23,127.21,4.454998]
[1765845966488,13.7270912,127.23,127.21,12.31586226]
[1765845970578,13.7270912,127.23,127.21,73.94978937]
[1765845970776,0.68,127.27,127.22,13.074998]
[1765845971092,0.68,127.27,127.25,4.454998]
[1765845971476,8.63002603,127.29,127.26,4.454998]
[1765845971787,0.77375597,127.29,127.27,4.454998]
[1765845972108,0.09375597,127.29,127.28,4.454998]
[1765845972478,0.09375597,127.29,127.28,13.074998]
[1765845972894,0.09375597,127.29,127.28,20.9316919]
[1765845973894,0.09375597,127.29,127.28,16.4766939]
[1765845974095,0.09375597,127.29,127.28,8.62]
[1765845974270,0.09375597,127.29,127.28,13.074998]
[1765845974989,0.09375597,127.29,127.28,20.9316919]
[1765845976294,0.09375597,127.29,127.28,12.3116919]
[1765845979803,0.09375597,127.29,127.27,8.62]
[1765845980181,0.77375597,127.29,127.28,4.454998]
[1765845981004,0.09375597,127.29,127.27,8.62]
[1765845981204,0.09375597,127.29,127.28,4.454998]
[1765845981509,0.09375597,127.29,127.28,12.3116919]
[1765845985600,0.77375597,127.29,127.28,12.3116919]
[1765845985811,0.09375597,127.29,127.28,12.3116919]
[1765845986010,0.77375597,127.29,127.27,7.85717621]
[1765845986791,0.77375597,127.29,127.27,12.31217421]
[1765845987119,0.09375597,127.29,127.28,12.3116919]
[1765845988517,0.09375597,127.29,127.28,74.2116919]
[1765845990521,0.09375597,127.29,127.28,82.8316919]
[1765845992297,0.09375597,127.29,127.28,78.3766939]
[1765845992496,0.09375597,127.29,127.28,82.8316919]
[1765845992834,0.77375597,127.29,127.27,20.93201325]
[1765845993011,0.77375597,127.29,127.27,16.47701525]
[1765845994233,0.77375597,127.29,127.27,8.62]
[1765845994436,8.62992106,127.29,127.26,61.9]
[1765845994630,13.08491906,127.29,127.24,7.85907729]
[1765845994815,0.68,127.28,127.24,7.85907729]
[1765845995627,0.68,127.28,127.24,12.31407529]
[1765845996008,8.53694119,127.28,127.24,12.31407529]
[1765845996207,0.68,127.27,127.24,12.31407529]
[1765845996922,0.68,127.27,127.23,20.93449767]
[1765845997922,0.68,127.27,127.24,7.8590565]
[1765845998503,8.537375,127.27,127.24,7.8590565]
[1765845998738,8.537375,127.27,127.24,12.3140545]
[1765845998937,0.68,127.26,127.24,12.3140545]
[1765845999300,0.68,127.26,127.24,12.3135829]
[1765845999523,0.68,127.26,127.25,4.4545264]
[1765846000119,8.53690836,127.28,127.25,4.4545264]
[1765846000403,0.68,127.28,127.26,4.4545264]
[1765846000607,0.68,127.27,127.25,74.21248744]
[1765846001856,0.68,127.27,127.25,61.9]
[1765846002222,8.53743451,127.27,127.25,61.9]
[1765846002527,8.53743451,127.27,127.24,7.85911179]
[1765846002858,0.68,127.26,127.24,7.85911179]
[1765846004427,0.68,127.26,127.23,12.31414631]
[1765846005921,8.53793919,127.26,127.23,4.4545264]
[1765846006324,0.68,127.25,127.22,12.31467211]
[1765846007018,0.68,127.25,127.21,31.96770485]
[1765846007019,8.53856163,127.25,127.21,31.96770485]
[1765846007549,0.68,127.24,127.21,7.86101721]
[1765846009253,0.68,127.24,127.21,12.31554361]
[1765846009456,9.3,127.24,127.21,7.86101721]
[1765846009638,9.3,127.24,127.21,12.31554361]
[1765846009842,0.68,127.23,127.21,12.31554361]
[1765846010251,0.68,127.23,127.21,7.86101721]
[1765846010550,0.68,127.23,127.21,12.31554361]
[1765846010965,0.68,127.23,127.21,4.4545264]
[1765846011269,0.68,127.23,127.19,27.51749888]
[1765846011446,0.68,127.23,127.21,4.4545264]
[1765846012170,8.53999246,127.23,127.21,4.4545264]
[1765846012564,0.68,127.22,127.21,4.4545264]
[1765846012760,7.85731122,127.27,127.21,4.4545264]
[1765846012965,7.85731122,127.27,127.24,4.4545264]
[1765846012966,21.6670912,127.26,127.24,4.4545264]
[1765846013168,22.3470912,127.26,127.24,4.4545264]
[1765846013477,0.68,127.25,127.23,2.85143859]
[1765846014366,8.53862393,127.25,127.23,2.85143859]
[1765846014753,0.68,127.24,127.23,2.85143859]
[1765846015151,0.68,127.24,127.19,61.9]
[1765846015350,8.62,127.23,127.2,2.85143859]
[1765846015777,0.68,127.22,127.2,2.85143859]
[1765846016579,0.68,127.22,127.19,10.71339317]
[1765846016875,7.86101721,127.21,127.16,19.66002142]
[1765846017067,7.86101721,127.21,127.17,2.85143859]
[1765846017268,0.68,127.2,127.17,2.85143859]
[1765846017474,0.68,127.2,127.16,7.86377613]
[1765846017778,12.15143859,127.2,127.15,7.86447435]
[1765846017950,12.15143859,127.2,127.16,7.86409263]
[1765846018151,0.68,127.19,127.16,7.86409263]
[1765846018352,8.5422933,127.19,127.16,7.86409263]
[1765846018561,8.5422933,127.19,127.15,2.85143859]
[1765846018764,0.68,127.18,127.14,0.1]
[1765846018954,13.0470912,127.16,127.14,0.1]
[1765846019159,0.68,127.15,127.14,0.1]
[1765846019375,13.7270912,127.15,127.14,0.1]
[1765846019576,0.68,127.15,127.14,2.95143859]
[1765846019957,0.68,127.15,127.14,10.81678387]
[1765846020152,0.68,127.15,127.14,0.1]
[1765846020368,0.68,127.17,127.14,0.1]
[1765846020573,0.68,127.16,127.15,2.85143859]
[1765846021164,0.68,127.16,127.14,0.1]
[1765846021888,8.62,127.15,127.14,0.1]
[1765846022261,0.7,127.15,127.14,0.1]
[1765846022481,0.7,127.19,127.14,13.66822246]
[1765846022689,0.7,127.21,127.18,2.85143859]
[1765846022983,0.7,127.21,127.2,2.85143859]
[1765846023161,9.32,127.22,127.2,2.85143859]
[1765846023363,9.32,127.22,127.21,2.85143859]
[1765846023559,0.7,127.24,127.21,2.85143859]
[1765846023863,8.62,127.26,127.23,2.85143859]
[1765846024060,8.62,127.26,127.24,2.85143859]
[1765846024061,21.6670912,127.26,127.24,2.85143859]
[1765846024264,0.7,127.25,127.23,2.85143859]
[1765846024459,0.7,127.25,127.24,2.85143859]
[1765846025290,8.55854689,127.25,127.23,2.85143859]
[1765846025580,8.55854689,127.25,127.2,22.50417225]
[1765846025581,8.55854689,127.25,127.2,7.86135036]
[1765846025757,8.55854689,127.25,127.2,10.71278895]
[1765846025758,0.7,127.24,127.2,10.71278895]
[1765846026476,0.7,127.24,127.21,2.85143859]
[1765846026861,21.6670912,127.23,127.19,10.71336336]
[1765846027262,0.7,127.22,127.18,10.71416147]
[1765846028284,13.0470912,127.2,127.17,2.85143859]
[1765846028463,21.6670912,127.2,127.17,2.85143859]
[1765846028783,0.7,127.19,127.16,2.85143859]
[1765846029164,8.62,127.23,127.18,2.85143859]
[1765846029363,0.7,127.24,127.21,2.85143859]
[1765846030775,3.55143859,127.24,127.19,2.85143859]
[1765846030971,16.47978149,127.23,127.19,10.71345776]
[1765846031299,17.17978149,127.23,127.19,10.71345776]
[1765846031466,0.7,127.22,127.19,10.71345776]
[1765846031667,0.7,127.22,127.19,7.86201917]
[1765846031865,0.7,127.24,127.21,2.85143859]
[1765846032985,0.7,127.24,127.21,10.71212863]
[1765846035393,8.55930407,127.24,127.21,10.71212863]
[1765846035701,8.55930407,127.24,127.21,7.86069004]
[1765846035873,0.7,127.23,127.21,7.86069004]
[1765846036281,0.7,127.23,127.21,10.71212863]
[1765846036684,9.32,127.25,127.22,2.85143859]
[1765846036879,8.62,127.25,127.22,2.85143859]
[1765846037095,0.7,127.24,127.22,2.85143859]
[1765846037299,9.32,127.25,127.22,2.85143859]
[1765846038398,0.7,127.25,127.22,2.85143859]
[1765846038614,0.7,127.25,127.21,27.51323307]
[1765846038773,0.7,127.25,127.22,2.85143859]
[1765846040591,0.7,127.25,127.21,27.51323307]
[1765846040797,0.7,127.25,127.22,2.85143859]
[1765846042910,0.7,127.25,127.22,10.71151849]
[1765846043519,0.7,127.25,127.23,2.85143859]
[1765846043678,21.0,127.26,127.24,2.85143859]
[1765846043882,21.0,127.26,127.25,2.85143859]
[1765846044904,21.0,127.26,127.25,10.70998475]
[1765846049014,21.0,127.26,127.25,7.85854616]
[1765846049329,21.0,127.26,127.25,10.70998475]
[1765846052119,0.09375597,127.29,127.25,85.5476108]
[1765846052287,0.09375597,127.29,127.25,79.84473362]
[1765846052616,0.09375597,127.29,127.28,2.85143859]
[1765846053197,0.09375597,127.29,127.28,10.70813249]
[1765846056727,0.77375597,127.29,127.27,7.85701973]
[1765846057094,0.77375597,127.29,127.26,7.8577059]
[1765846058205,0.77375597,127.29,127.27,7.85717978]
[1765846059125,0.77375597,127.29,127.26,7.85792865]
[1765846061730,0.77375597,127.29,127.26,10.70936724]
[1765846062314,0.77375597,127.29,127.26,7.85792865]
[1765846062521,0.77375597,127.29,127.26,72.60936724]
[1765846064402,0.77375597,127.29,127.27,10.70847392]
[1765846064603,0.09375597,127.29,127.27,7.85703533]
[1765846064802,0.77375597,127.29,127.27,10.70847392]
[1765846065423,0.77375597,127.29,127.27,10.70655887]
[1765846066916,0.77375597,127.29,127.27,7.85703533]
[1765846067317,0.77375597,127.29,127.27,10.70655887]
[1765846068529,0.77375597,127.29,127.27,72.60655887]
[1765846068828,0.09375597,127.29,127.28,11.46952354]
[1765846069124,0.09375597,127.29,127.28,81.22621744]
[1765846072438,0.09375597,127.29,127.28,81.22621744]
[1765846073113,0.09375597,127.29,127.28,90.03616236]
[1765846073522,0.09375597,127.29,127.28,91.63609821]
[1765846074436,0.10605835,127.3,127.29,61.80624403]
[1765846074640,0.10605835,127.3,127.29,66.25570342]
[1765846075040,0.10605835,127.3,127.29,74.11178009]
[1765846076541,0.10605835,127.3,127.29,69.6623207]
[1765846076740,0.10605835,127.3,127.29,74.11178009]
[1765846080223,0.78605835,127.3,127.29,69.6623207]
[1765846080417,0.78605835,127.3,127.29,74.11178009]
[1765846081144,0.78605835,127.3,127.29,7.85607667]
[1765846081339,0.78605835,127.3,127.28,7.8566939]
[1765846082330,0.78605835,127.3,127.28,12.30615329]
[1765846082929,0.10605835,127.3,127.29,13.06945939]
[1765846083141,0.10605835,127.3,127.29,8.62]
[1765846083449,0.75605835,127.3,127.28,31.94788804]
[1765846083750,0.75605835,127.3,127.28,27.49842865]
[1765846084432,0.10605835,127.3,127.29,4.44945939]
[1765846085151,0.75605835,127.3,127.29,12.30553606]
[1765846085840,0.75605835,127.3,127.29,7.85607667]
[1765846086751,0.75605835,127.3,127.28,7.85650823]
[1765846088148,0.75605835,127.3,127.28,12.30596762]
[1765846088523,0.10605835,127.3,127.29,4.44945939]
[1765846088838,0.75605835,127.3,127.29,12.30553606]
[1765846089349,0.75605835,127.3,127.29,7.85607667]
[1765846089523,0.75605835,127.3,127.29,12.30553606]
[1765846090625,0.75605835,127.3,127.29,7.85607667]
[1765846092256,0.75605835,127.3,127.29,69.6623207]
[1765846092731,0.10605835,127.3,127.29,69.6623207]
[1765846092931,0.10605835,127.3,127.29,74.11178009]
[1765846093454,0.10605835,127.3,127.29,69.6623207]
[1765846093642,0.10605835,127.3,127.29,74.11178009]
[1765846093845,0.10605835,127.3,127.29,69.6623207]
[1765846094142,0.10605835,127.3,127.29,74.11178009]
[1765846097265,0.10605835,127.3,127.29,69.6623207]
[1765846097455,0.10605835,127.3,127.29,74.11178009]
[1765846099849,0.75605835,127.3,127.29,74.11178009]
[1765846100963,0.10605835,127.3,127.29,74.11178009]
[1765846101139,0.75605835,127.3,127.29,69.6623207]
[1765846108656,0.75605835,127.3,127.29,74.11178009]
[1765846110037,0.10605835,127.3,127.29,74.11178009]
[1765846111236,0.10605835,127.3,127.29,69.6623207]
[1765846111473,0.10605835,127.3,127.29,74.11178009]
[1765846121072,0.10605835,127.3,127.29,69.6623207]
[1765846121269,0.10605835,127.3,127.29,74.11178009]
[1765846121851,0.10605835,127.3,127.29,69.6623207]
[1765846122053,0.10605835,127.3,127.29,74.11178009]
[1765846123460,0.78605835,127.3,127.29,74.11178009]
[1765846126180,0.10605835,127.3,127.29,74.11178009]
[1765846127056,0.78605835,127.3,127.29,74.11178009]
[1765846128075,0.10605835,127.3,127.29,74.11178009]
[1765846131189,0.78605835,127.3,127.29,66.25570342]
[1765846131480,0.78605835,127.3,127.27,7.8569862]
[1765846132060,0.78605835,127.3,127.27,12.30977207]
[1765846133383,0.78605835,127.3,127.27,10.70668577]
[1765846134467,8.64157966,127.3,127.26,10.70732367]
[1765846134779,0.68,127.29,127.26,10.70732367]
[1765846135082,0.68,127.29,127.27,10.70698925]
[1765846135977,21.58334261,127.29,127.23,19.6488922]
[1765846136180,2.84969957,127.28,127.23,22.49859177]
[1765846136387,0.68,127.28,127.25,7.85823382]
[1765846136565,0.68,127.27,127.25,7.85823382]
[1765846137976,0.68,127.27,127.26,2.84969957]
[1765846138876,0.68,127.28,127.26,2.84969957]
[1765846139071,0.68,127.28,127.27,2.84969957]
[1765846139890,0.10605835,127.3,127.27,10.70701079]
[1765846140092,0.78605835,127.3,127.28,2.84969957]
[1765846141283,0.78605835,127.3,127.27,7.85731122]
[1765846141461,8.64166818,127.3,127.26,10.70732326]
[1765846141889,15.89679077,127.27,127.23,10.70906414]
[1765846142101,24.51679077,127.27,127.23,7.85936457]
[1765846142291,0.72,127.26,127.23,7.85936457]
[1765846142487,0.72,127.26,127.24,7.85913963]
[1765846143278,0.72,127.26,127.25,7.85854616]
[1765846143473,0.72,127.26,127.25,10.70824573]
[1765846143670,0.72,127.27,127.26,7.85767449]
[1765846143890,0.72,127.27,127.26,10.70737406]
[1765846145191,0.72,127.27,127.26,7.85767449]
[1765846148675,0.72,127.27,127.26,69.66391852]
[1765846149084,11.42701079,127.27,127.23,7.85944339]
[1765846149284,0.72,127.27,127.24,2.84969957]
[1765846149490,0.72,127.26,127.24,10.70854628]
[1765846150697,9.34,127.28,127.25,10.70824573]
[1765846150926,0.82605835,127.3,127.27,2.84969957]
[1765846151093,0.82605835,127.3,127.29,2.84969957]
[1765846151290,0.82605835,127.3,127.28,10.70639347]
[1765846151821,0.82605835,127.3,127.27,7.85714885]
[1765846152194,0.82605835,127.3,127.27,10.70684842]
[1765846152921,0.82605835,127.3,127.29,7.85607667]
[1765846154413,0.82605835,127.3,127.27,2.84969957]
[1765846154591,0.82605835,127.3,127.21,39.30482129]
[1765846154592,24.51679077,127.29,127.21,39.30482129]
[1765846154792,24.51679077,127.29,127.25,7.85810251]
[1765846154993,0.72,127.28,127.26,2.84969957]
[1765846155620,0.72,127.28,127.27,2.84969957]
[1765846156410,0.82605835,127.3,127.27,64.6559436]
[1765846156611,0.72,127.29,127.28,2.84969957]
[1765846156926,0.72,127.29,127.27,69.66314989]
[1765846157126,0.72,127.29,127.27,72.51284946]
[1765846160130,0.72,127.29,127.27,69.66314989]
[1765846161831,0.10605835,127.3,127.27,69.66314989]
[1765846162014,0.10605835,127.3,127.28,11.46969957]
[1765846162330,0.82605835,127.3,127.28,8.62]
[1765846163419,0.82605835,127.3,127.27,10.70675673]
[1765846163930,0.82605835,127.3,127.27,7.85705716]
[1765846164116,8.68158099,127.3,127.27,7.85705716]
[1765846164316,0.82605835,127.3,127.27,7.85705716]
[1765846164510,0.72,127.29,127.27,7.85705716]
[1765846168134,3.623192,127.29,127.27,7.85705716]
[1765846168910,11.47933533,127.29,127.26,7.85762298]
[1765846169241,2.84969957,127.27,127.23,7.85953429]
[1765846169419,2.84969957,127.27,127.22,7.8601734]
[1765846169606,13.7670912,127.28,127.21,7.86083483]
[1765846169607,3.56969957,127.26,127.21,7.86083483]
[1765846170003,0.72,127.25,127.21,10.7105344]
[1765846171231,0.72,127.25,127.23,2.84969957]
[1765846172038,9.29,127.26,127.23,2.84969957]
[1765846172337,0.67,127.25,127.24,7.85916378]
[1765846173239,8.62,127.26,127.24,7.85916378]
[1765846173410,9.29,127.26,127.24,10.70886335]
[1765846173611,0.67,127.26,127.24,10.70886335]
[1765846174633,13.0470912,127.28,127.24,10.70886335]
[1765846174839,0.67,127.27,127.25,2.84969957]
[1765846175016,0.67,127.28,127.26,2.84969957]
[1765846175341,0.67,127.28,127.24,38.97677281]
[1765846175532,0.67,127.28,127.25,2.84969957]
[1765846175840,0.67,127.28,127.24,38.97677281]
[1765846176440,0.67,127.28,127.25,2.84969957]
[1765846176612,0.67,127.28,127.26,7.85792865]
[1765846177163,0.67,127.28,127.26,10.70762822]
[1765846178844,2.903192,127.29,127.26,38.97244984]
[1765846179045,2.903192,127.29,127.27,2.84969957]
[1765846180638,3.573192,127.29,127.27,2.84969957]
[1765846180841,2.903192,127.29,127.28,7.8566939]
[1765846186244,3.573192,127.29,127.28,7.8566939]
[1765846186852,3.573192,127.29,127.27,69.7570177]
[1765846187029,0.67,127.28,127.26,16.47761357]
[1765846188782,0.67,127.28,127.26,8.62]
[1765846188929,0.67,127.28,127.25,7.85830996]
[1765846189936,8.52676756,127.28,127.25,7.85830996]
[1765846190339,0.67,127.27,127.24,16.47896593]
[1765846191154,0.67,127.27,127.24,7.85896593]
[1765846192538,0.67,127.27,127.23,27.50843057]
[1765846192855,8.52738965,127.27,127.23,10.70948106]
[1765846193352,0.67,127.26,127.23,7.85978149]
[1765846193530,0.67,127.26,127.23,10.70948106]
[1765846195348,0.67,127.26,127.23,12.31490882]
[1765846195855,0.67,127.26,127.22,16.48002908]
[1765846195856,5.12512733,127.26,127.22,16.48002908]
[1765846196051,12.98305725,127.26,127.22,16.48002908]
[1765846196253,0.67,127.25,127.22,78.38002908]
[1765846197745,8.52865219,127.25,127.22,78.38002908]
[1765846197947,0.67,127.24,127.22,78.38002908]
[1765846199163,0.67,127.24,127.22,69.76002908]
[1765846199757,0.67,127.25,127.22,74.21660698]
[1765846200145,0.67,127.24,127.22,74.21660698]
[1765846200338,0.67,127.24,127.21,7.8608777]
[1765846200862,0.67,127.24,127.22,7.86034742]
[1765846201864,8.52921902,127.24,127.2,16.48145573]
[1765846202066,12.98579692,127.24,127.2,16.48145573]
[1765846202245,0.69,127.23,127.2,16.48145573]
[1765846203145,0.69,127.23,127.2,7.86145573]
[1765846203646,4.4565779,127.22,127.18,7.86279439]
[1765846203847,12.31737492,127.22,127.18,7.86279439]
[1765846204057,0.69,127.21,127.18,7.86279439]
[1765846206349,0.69,127.21,127.17,12.31979501]
[1765846206350,8.55126117,127.21,127.17,12.31979501]
[1765846206558,8.55126117,127.21,127.16,13.1765779]
[1765846206870,5.1465779,127.2,127.16,16.58380814]
[1765846207372,0.69,127.19,127.16,7.96380814]
[1765846207861,0.69,127.19,127.16,12.42038604]
[1765846208055,0.69,127.19,127.17,4.4565779]
[1765846208254,0.69,127.19,127.16,12.42038604]
[1765846211168,8.55232966,127.19,127.16,7.96380814]
[1765846211644,0.69,127.18,127.16,7.96380814]
[1765846212474,0.69,127.18,127.16,0.1]
[1765846212475,8.5530328,127.18,127.16,0.1]
[1765846212663,13.0096107,127.18,127.16,0.1]
[1765846212849,0.69,127.17,127.16,0.1]
[1765846214464,8.55348981,127.17,127.16,0.1]
[1765846216369,7.8629886,127.18,127.16,0.1]
[1765846216554,16.23028153,127.19,127.16,0.1]
[1765846216555,0.69,127.17,127.16,0.1]
[1765846216759,5.1465779,127.17,127.16,0.1]
[1765846217553,5.1465779,127.17,127.15,0.1]
[1765846217748,13.7665779,127.16,127.15,0.1]
[1765846217971,9.31,127.16,127.15,0.1]
[1765846218167,13.7665779,127.16,127.15,0.1]
[1765846218364,30.44063103,127.16,127.15,0.1]
[1765846218670,8.80994492,127.15,127.14,0.1]
[1765846218974,13.95652282,127.15,127.14,0.1]
[1765846220269,21.82124952,127.15,127.14,0.1]
[1765846222369,41.48306627,127.15,127.13,0.1]
[1765846222576,13.95652282,127.14,127.13,0.1]
[1765846222874,18.41310072,127.14,127.13,0.1]
[1765846223076,21.56829693,127.14,127.13,0.1]
[1765846224270,29.43364221,127.14,127.13,0.1]
[1765846224474,24.97706431,127.14,127.13,0.1]
[1765846225475,33.59706431,127.14,127.13,0.1]
[1765846226378,29.14048641,127.14,127.13,0.1]
[1765846226680,38.05364221,127.14,127.13,1e-08]
[1765846226851,33.59706431,127.14,127.13,1e-08]
[1765846227279,21.85703612,127.12,127.11,0.1]
[1765846227454,8.80994492,127.11,127.03,7.97185357]
[1765846227650,13.95652282,127.11,127.04,7.87105767]
[1765846227873,4.4565779,127.09,127.04,12.62763557]
[1765846228062,8.62,127.08,127.04,12.32763557]
[1765846228262,9.31,127.08,127.05,0.3]
[1765846228469,17.17933087,127.08,127.04,12.32763557]
[1765846228772,17.17933087,127.08,127.04,12.62763557]
[1765846228975,17.17933087,127.08,127.05,8.17088037]
[1765846229272,8.62,127.08,127.05,12.62745827]
[1765846229469,8.62,127.08,127.06,0.3]
[1765846229966,8.62,127.08,127.05,12.62745827]
[1765846230164,0.69,127.07,127.03,0.1]
[1765846230364,8.56000233,127.07,127.03,7.97182764]
[1765846230774,8.56000233,127.07,127.04,0.3]
[1765846230974,8.56000233,127.07,127.03,12.72840554]
[1765846231768,7.87000233,127.07,127.03,12.72840554]
[1765846231957,8.59000233,127.07,127.03,12.72840554]
[1765846232481,8.55000233,127.07,127.03,12.72840554]
[1765846233186,7.87000233,127.07,127.03,12.72840554]
[1765846233358,8.55041702,127.06,127.03,12.72840554]
[1765846233677,36.72039954,127.09,127.05,4.4565779]
[1765846233882,28.99050133,127.1,127.06,0.3]
[1765846234086,8.64,127.1,127.07,4.4565779]
[1765846234282,30.2351695,127.1,127.07,4.4565779]
[1765846234580,34.0117474,127.1,127.06,0.3]
[1765846234776,0.68,127.09,127.05,4.4565779]
[1765846235178,0.68,127.09,127.06,4.4565779]
[1765846235485,8.54737983,127.11,127.07,4.4565779]
[1765846235691,17.18737983,127.11,127.07,4.7565779]
[1765846236060,17.18737983,127.11,127.08,4.4565779]
[1765846236258,20.91398721,127.12,127.09,4.4565779]
[1765846236471,7.86689601,127.12,127.09,4.7565779]
[1765846239590,29.55318812,127.13,127.1,4.7565779]
[1765846239780,30.23318812,127.13,127.1,4.4565779]
[1765846240989,30.23318812,127.13,127.09,8.16810936]
[1765846241185,30.23318812,127.13,127.1,4.4565779]
[1765846241996,29.55318812,127.13,127.1,12.32406671]
[1765846242176,8.64,127.13,127.11,4.7565779]
[1765846242376,8.64,127.13,127.11,4.4565779]
[1765846242866,8.64,127.13,127.1,7.86748881]
[1765846243072,8.54555323,127.14,127.11,0.3]
[1765846243274,8.54555323,127.14,127.11,4.4565779]
[1765846245595,7.86555323,127.14,127.11,4.4565779]
[1765846245774,7.86555323,127.14,127.11,12.62370821]
[1765846245974,7.86555323,127.14,127.12,4.7565779]
[1765846246479,7.86555323,127.14,127.12,4.4565779]
[1765846246688,0.68,127.13,127.09,74.52472523]
[1765846247002,29.55211218,127.15,127.12,4.4565779]
[1765846247210,29.55211218,127.15,127.13,4.4565779]
[1765846247585,16.50502098,127.15,127.13,4.4565779]
[1765846247984,17.18502098,127.15,127.13,4.4565779]
[1765846248295,0.68,127.14,127.11,4.4565779]
[1765846248479,0.68,127.14,127.12,4.4565779]
[1765846248996,0.68,127.14,127.11,4.4565779]
[1765846249198,13.7270912,127.14,127.09,12.32481521]
[1765846249410,13.7270912,127.14,127.09,12.62481521]
[1765846249601,0.68,127.13,127.09,12.62481521]
[1765846251610,7.86658275,127.12,127.1,4.4565779]
[1765846251916,7.86658275,127.12,127.09,12.62481521]
[1765846252239,8.54658275,127.12,127.1,4.4565779]
[1765846253010,8.54658275,127.12,127.09,66.6565779]
[1765846253305,7.86658275,127.12,127.09,66.3565779]
[1765846253510,0.68,127.11,127.09,66.3565779]
[1765846253715,8.54658275,127.12,127.09,66.3565779]
[1765846254491,7.86658275,127.12,127.09,61.9]
[1765846254697,0.68,127.11,127.08,66.6565779]
[1765846255300,0.68,127.11,127.08,66.3565779]
[1765846255789,8.54781443,127.11,127.08,66.3565779]
[1765846256417,0.68,127.1,127.08,61.9]
[1765846256805,0.68,127.1,127.06,0.3]
[1765846257016,8.64,127.09,127.05,4.4565779]
[1765846257198,8.64,127.09,127.06,4.4565779]
[1765846257520,8.64,127.09,127.07,2.85851128]
[1765846257708,12.32262359,127.13,127.08,25.38966971]
[1765846258013,7.86604569,127.13,127.11,2.85851128]
[1765846258186,7.86604569,127.13,127.09,0.3]
[1765846258389,7.86604569,127.13,127.11,2.85851128]
[1765846259116,8.54604569,127.13,127.11,2.85851128]
[1765846259499,28.21095562,127.13,127.06,8.64]
[1765846259728,28.21095562,127.13,127.1,2.85851128]
[1765846260121,0.68,127.12,127.1,2.85851128]
[1765846260417,8.54604569,127.13,127.1,2.85851128]
[1765846260600,7.8647267,127.15,127.12,2.85851128]
[1765846260802,9.32,127.16,127.13,3.15851128]
[1765846261515,16.50423174,127.16,127.12,2.85851128]
[1765846261718,0.68,127.15,127.1,3.15851128]
[1765846261890,7.86534528,127.14,127.1,2.85851128]
[1765846262298,0.66,127.13,127.09,8.16825304]
[1765846262522,0.66,127.13,127.1,2.85851128]
[1765846264728,0.66,127.13,127.1,2.85704841]
[1765846265227,0.66,127.13,127.1,10.72471783]
[1765846266008,8.52596834,127.13,127.1,10.72471783]
[1765846266525,8.52596834,127.13,127.1,11.02471783]
[1765846266902,19.66251567,127.15,127.1,11.02471783]
[1765846266903,52.36897053,127.17,127.12,2.85704841]
[1765846267208,52.36897053,127.17,127.1,7.86766942]
[1765846267209,16.5037239,127.17,127.1,36.15722095]
[1765846267408,0.66,127.16,127.1,27.83722095]
[1765846267613,0.66,127.16,127.11,2.85704841]